[Event "FIDE CB Open 2022"]
[Site "Ceske Budejovice"]
[Date "2022.07.01"]
[Round "1.10"]
[White "Zaza, Martin"]
[Black "Dotzer, Lukas"]
[Result "0-1"]
[ECO "B50"]
[WhiteElo "1911"]
[BlackElo "2269"]
[Annotator "ChessBase"]
[PlyCount "80"]
[EventDate "2022.07.01"]
[EventType "swiss"]
[EventCountry "CZE"]
[SourceTitle "playchess.com"]
[Source "ChessBase"]
[SourceQuality "1"]
[TimeControl "40/5400+30:1800+30"]

1. e4 {[%emt 0:00:31]} c5 {[%emt 0:00:12]} 2. Nf3 {[%emt 0:00:11]} e6 {[%emt 0:00:10]} 3. b3 {[%emt 0:01:11]} Nc6 {[%emt 0:00:45]} 4. Bb2 {[%emt 0:00:14]} d6 {[%emt 0:00:15]} 5. Bb5 {[%emt 0:05:04]} Bd7 {[%emt 0:03:06]} 6. O-O {[%emt 0:01:58]} a6 {[%emt 0:02:28]} 7. Be2 {[%emt 0:06:26]} Nf6 {[%emt 0:01:24]} 8. d3 {[%emt 0:04:48]} Qc7 {[%emt 0:02:25]} 9. Nbd2 {[%emt 0:01:40]} Be7 {[%emt 0:04:32]} 10. a4 {[%emt 0:06:46]} O-O {[%emt 0:02:12]} 11. Re1 {[%emt 0:14:54]} Nh5 {[%emt 0:13:11]} 12. Ne5 {[%emt 0:15:43]} Nxe5 {[%emt 0:06:19]} 13. Bxh5 {[%emt 0:00:28]} Ng6 {[%emt 0:06:39]} 14. g3 {[%emt 0:06:03]} e5 {[%emt 0:11:25]} 15. Bg4 {[%emt 0:04:29]} Bc6 {[%emt 0:01:28]} 16. Nc4 {[%emt 0:12:17]} b5 {[%emt 0:03:06]} 17. axb5 {[%emt 0:00:06]} axb5 {[%emt 0:00:08]} 18. Rxa8 {[%emt 0:01:31]} Rxa8 {[%emt 0:05:18]} 19. Ne3 {[%emt 0:00:07]} Bg5 {[%emt 0:00:26]} 20. Qe2 {[%emt 0:02:33]} Ra2 {[%emt 0:02:00]} 21. Ra1 {[%emt 0:02:10]} Rxa1+ {[%emt 0:09:11]} 22. Bxa1 {[%emt 0:00:05]} Qa5 {[%emt 0:00:55]} 23. Qd1 {[%emt 0:00:51]} Ne7 {[%emt 0:03:09]} 24. Kf1 {[%emt 0:04:46]} g6 {[%emt 0:01:25]} 25. Bb2 {[%emt 0:01:58]} Bxe3 {[%emt 0:05:19]} 26. fxe3 {[%emt 0:00:08]} f5 {[%emt 0:01:55]} 27. exf5 {[%emt 0:01:11]} gxf5 {[%emt 0:00:32]} 28. Bh3 {[%emt 0:02:48]} Qa8 {[%emt 0:04:37]} 29. Qa1 {[%emt 0:03:22]} Qf8 {[%emt 0:02:56]} 30. Qa5 {[%emt 0:00:21]} Qh6 {[%emt 0:00:58]} 31. Qd8+ {[%emt 0:00:30]} Kf7 {[%emt 0:00:08]} 32. Bg2 {[%emt 0:00:05]} Bxg2+ {[%emt 0:02:05]} 33. Kxg2 {[%emt 0:00:04]} Qxe3 {[%emt 0:00:10]} 34. Qxd6 {[%emt 0:00:23]} Qe2+ {[%emt 0:00:07]} 35. Kh3 {[%emt 0:00:05]} Qf1+ {[%emt 0:00:16]} 36. Kh4 {[%emt 0:00:07]} Ng6+ {[%emt 0:00:13]} 37. Kg5 {[%emt 0:00:15]} h6+ {[%emt 0:00:10]} 38. Kxh6 {[%emt 0:00:48]} Qh3+ {[%emt 0:00:05]} 39. Kg5 {[%emt 0:00:04]} Qg4+ {[%emt 0:00:07]} 40. Kh6 {[%emt 0:00:11]} Ne7 {[%emt 0:00:12]} 0-1

[Event "FIDE CB Open 2022"]
[Site "Ceske Budejovice"]
[Date "2022.07.01"]
[Round "1.11"]
[White "Zeman, Matyas"]
[Black "Saravanan Durga"]
[Result "1-0"]
[ECO "A07"]
[WhiteElo "2262"]
[BlackElo "1908"]
[Annotator "TA"]
[PlyCount "134"]
[EventDate "2022.07.01"]
[EventType "swiss"]
[EventCountry "CZE"]
[SourceTitle "playchess.com"]
[Source "ChessBase"]
[SourceQuality "1"]
[TimeControl "40/5400+30:1800+30"]

{[%evp 9,134,105,103,102,104,99,96,75,119,115,139,136,152,135,180,144,158,132,145,146,192,196,229,237,266,266,267,265,260,260,253,261,336,336,422,404,385,337,321,314,316,313,378,393,423,423,433,416,421,405,404,427,428,423,411,396,481,464,452,447,691,677,548,515,732,718,637,624,1021,1018,981,953,1708,1740,1660,1627,1302,1227,1035,908,29982,29983,29983,29984,29984,29985,29985,29983,29988,29989,29989,29989,29989,29990,29990,29990,29990,29990,29991,29989,29989,29990,29990,29990,29991,29991,29992,29992,29993,29993,29994,29994,29994,29995,29995,29996,29996,29997,29997,29997,29997,29997,29997,29997,29998,29999,29999]} 1. Nf3 {[%emt 0:00:16]} d5 {[%emt 0:00:05]} 2. g3 {[%emt 0:00:11]} Nf6 {[%emt 0:01:18]} 3. Bg2 {[%emt 0:00:07]} d4 {[%emt 0:05:11]} 4. c3 {[%emt 0:07:05] [#]} dxc3 $146 {[%emt 0:06:38]} ({Predecessor:} 4... c5 5. cxd4 cxd4 6. Qa4+ Nc6 7. Nxd4 Qc7 8. Nxc6 bxc6 9. Qxc6+ {1-0 (9) Markoja,J (2047)-Martin,H (1414) LSS email 2015}) 5. Nxc3 {[%emt 0:00:32]} e6 {[%emt 0:02:35]} 6. O-O {[%emt 0:02:08] A07: Réti Opening: New York and Capablanca Systems.} Be7 {[%emt 0:02:03]} 7. d4 {[%emt 0:03:39]} O-O {[%emt 0:07:54]} 8. Qb3 {[%emt 0:04:09] White is better.} Nc6 {[%emt 0:19:37] [#]} 9. Rd1 $1 {[%emt 0:00:33]} Bb4 {[%emt 0:13:28]} 10. Ne5 {[%emt 0:13:54]} a5 {[%emt 0:13:38]} 11. Nxc6 {[%emt 0:03:50] White is much more active. The black rooks are badly placed.} bxc6 {[%emt 0:00:03]} 12. a3 {[%emt 0:03:14]} Bxc3 {[%emt 0:01:07]} 13. Qxc3 {[%emt 0:00:05]} ({Don't do} 13. Bxc6 Bxb2 14. Qxb2 (14. Bxb2 Ra6 $16) 14... Ra6 $16) 13... Nd5 {[%emt 0:03:30]} 14. Qxc6 {[%emt 0:00:41]} Bd7 {[%emt 0:00:36]} (14... Ra6 $16 15. Qc4 f5) 15. Qc2 $18 {[%emt 0:01:27]} a4 {[%emt 0:01:26]} 16. e4 {[%emt 0:00:15]} Nb6 {[%emt 0:00:27]} 17. Bf4 {[%emt 0:00:12][%cal Bc1f4,Bf4e5,Be5c3][%mdl 32]} Rc8 {[%emt 0:01:59]} 18. Rac1 {[%emt 0:00:11]} Qf6 {[%emt 0:06:17]} 19. Qc5 {[%emt 0:01:51]} Na8 {[%emt 0:01:50]} 20. Be5 {[%emt 0:05:46]} Qd8 {[%emt 0:01:52]} 21. d5 {[%emt 0:00:21]} Qe8 {[%emt 0:00:51]} 22. Bc3 {[%emt 0:01:44]} f6 {[%emt 0:01:55]} 23. Bb4 {[%emt 0:01:33]} Rf7 {[%emt 0:00:05]} 24. dxe6 {[%emt 0:02:15]} Bxe6 {[%emt 0:00:05]} 25. e5 {[%emt 0:00:07] [#] Threatens to win with Bc6.} fxe5 {[%emt 0:02:34]} 26. Re1 {[%emt 0:00:05]} Nb6 {[%emt 0:02:47]} 27. Qxe5 {[%emt 0:00:04]} Bd7 {[%emt 0:01:08] Inhibits Bc6.} 28. Rxc7 {[%emt 0:01:16]} Qxe5 {[%emt 0:01:03]} 29. Rxc8+ {[%emt 0:00:04]} Bxc8 {[%emt 0:00:27]} 30. Rxe5 {[%emt 0:00:04] Intending Re8+ and mate.} Rc7 {[%emt 0:01:30]} 31. h4 {[%emt 0:02:50]} ({Weaker is} 31. Bc5 Kf7 32. Bf1 (32. Bxb6 {gets mated.} Rc1+ 33. Bf1 Bh3) 32... Nd7 33. Re7+ Kf6 $18) 31... Kf7 {[%emt 0:00:11]} 32. Be4 {[%emt 0:00:58]} Nc4 {[%emt 0:01:22]} 33. Bd5+ {[%emt 0:01:05]} Kf6 {[%emt 0:00:04]} 34. Re2 {[%emt 0:00:23]} Bf5 {[%emt 0:00:51]} (34... h5 $142 35. Bc3+ Kg6) 35. Bc3+ {[%emt 0:00:23]} Kg6 {[%emt 0:00:20]} 36. g4 {[%emt 0:00:51]} Bxg4 {[%emt 0:00:33]} 37. Re4 {[%emt 0:00:06][%csl LRc4,LRg4]} Bf5 {[%emt 0:01:00]} 38. Rxc4 {[%emt 0:00:06]} Rd7 {[%emt 0:00:37]} 39. Be4 {[%emt 0:00:19]} Bxe4 {[%emt 0:00:20]} 40. Rxe4 {[%emt 0:00:06][%mdl 4096] Endgame KRB-KR} Ra7 {[%emt 0:00:05]} 41. Rg4+ {[%emt 0:30:06]} Kh6 {[%emt 0:30:18]} 42. Kg2 {[%emt 0:00:52]} g6 {[%emt 0:00:09]} 43. Kg3 {[%emt 0:00:05] aiming for Rd4.} Ra6 {[%emt 0:00:28]} 44. h5 {[%emt 0:00:09] White threatens f4 and mate.} Ra7 {[%emt 0:00:35]} 45. hxg6 {[%emt 0:00:33] White mates.} hxg6 {[%emt 0:00:01]} 46. f4 {[%emt 0:00:01][%cal Rg4h4]} g5 {[%emt 0:00:55]} 47. Rxg5 {[%emt 0:00:05]} Rd7 {[%emt 0:00:24]} 48. Kg4 {[%emt 0:00:12]} Rd3 {[%emt 0:00:55]} 49. f5 {[%emt 0:00:34][%csl Gg4][%cal Rg5h5]} Kh7 {[%emt 0:00:44]} 50. Rg7+ {[%emt 0:00:21]} Kh6 {[%emt 0:00:10]} 51. Rg8 {[%emt 0:00:13][%cal Rg8h8]} Rd7 {[%emt 0:00:35]} 52. Rh8+ {[%emt 0:00:07]} Rh7 {[%emt 0:00:06]} 53. Rxh7+ {[%emt 0:00:15]} Kxh7 {[%emt 0:00:03] KB-KP} 54. b4 {[%emt 0:00:09]} axb3 {[%emt 0:00:26]} 55. a4 {[%emt 0:00:05]} Kg8 {[%emt 0:00:18]} 56. a5 {[%emt 0:00:09]} Kf7 {[%emt 0:00:03]} 57. a6 {[%emt 0:00:04]} Ke7 {[%emt 0:00:11]} 58. a7 {[%emt 0:00:06]} Kd6 {[%emt 0:00:13]} 59. a8=Q {[%emt 0:00:10]} Kc5 {[%emt 0:00:05]} 60. Qa4 {[%emt 0:00:46]} Kd6 {[%emt 0:00:14]} 61. Qxb3 {[%emt 0:00:18]} Kc6 {[%emt 0:00:02]} 62. f6 {[%emt 0:00:09]} Kd7 {[%emt 0:00:09]} 63. f7 {[%emt 0:00:07]} Ke7 {[%emt 0:00:03]} 64. Bb4+ {[%emt 0:00:06]} Kd7 {[%emt 0:00:10]} 65. f8=R {[%emt 0:00:11]} Kc7 {[%emt 0:00:04]} 66. Ba5+ {[%emt 0:00:09]} Kd7 {[%emt 0:00:04]} 67. Qd5+ {[%emt 0:00:07]} Ke7 {[%emt 0:00:04] Weighted Error Value: White=0.05 (flawless) /Black=0.28 (precise)} 1-0

[Event "FIDE CB Open 2022"]
[Site "Ceske Budejovice"]
[Date "2022.07.01"]
[Round "1.12"]
[White "Toman, Jan"]
[Black "Maryasin, Boris"]
[Result "0-1"]
[ECO "B22"]
[WhiteElo "2142"]
[BlackElo "2260"]
[Annotator "RC"]
[PlyCount "50"]
[EventDate "2022.07.01"]
[EventType "swiss"]
[EventCountry "CZE"]
[SourceTitle "playchess.com"]
[Source "ChessBase"]
[SourceQuality "1"]
[TimeControl "40/5400+30:1800+30"]

1. e4 {[%emt 0:00:47]} c5 {[%emt 0:00:14]} 2. c3 {[%emt 0:00:20]} Nf6 {[%emt 0:00:15]} 3. e5 {[%emt 0:00:08]} Nd5 {[%emt 0:00:06]} 4. Nf3 {[%emt 0:00:12]} d6 {[%emt 0:00:53]} 5. exd6 {[%emt 0:01:11]} Qxd6 {[%emt 0:00:57]} 6. d4 {[%emt 0:03:56]} g6 {[%emt 0:01:09]} 7. Na3 {[%emt 0:03:16]} a6 {[%emt 0:08:40]} 8. Bc4 {[%emt 0:08:49]} Be6 {[%emt 0:05:49]} 9. dxc5 {[%emt 0:02:16]} Qxc5 {[%emt 0:00:09]} 10. Qd4 {[%emt 0:00:21]} Qxd4 {[%emt 0:00:55]} 11. Nxd4 {[%emt 0:00:05]} Bg7 {[%emt 0:00:32]} 12. Nxe6 {[%emt 0:00:26]} fxe6 {[%emt 0:00:07]} 13. Be2 {[%emt 0:04:36]} Nxc3 {[%emt 0:03:32]} 14. Bg4 {[%emt 0:01:56]} Kf7 {[%emt 0:01:51]} 15. O-O {[%emt 0:00:49]} h5 {[%emt 0:00:54]} 16. Bf3 {[%emt 0:09:30]} Nd5 {[%emt 0:00:15]} 17. Rd1 {[%emt 0:02:04]} Nc6 {[%emt 0:00:44]} 18. Nc4 {[%emt 0:08:09]} Rad8 {[%emt 0:02:38]} 19. Be3 {[%emt 0:05:05]} b5 {[%emt 0:01:27]} 20. Nb6 {[%emt 0:01:26]} Nxe3 {[%emt 0:01:25]} 21. fxe3 {[%emt 0:02:55]} Nb4 {[%emt 0:02:37]} 22. Be4 {[%emt 0:17:06]} Bxb2 {[%emt 0:11:34]} 23. Rab1 {[%emt 0:08:41]} Rxd1+ {[%emt 0:01:18]} 24. Rxd1 {[%emt 0:00:05]} Nxa2 {[%emt 0:02:06]} 25. Rd2 {[%emt 0:00:36]} Nc3 {[%emt 0:05:04]} 0-1

[Event "FIDE CB Open 2022"]
[Site "Ceske Budejovice"]
[Date "2022.07.01"]
[Round "1.13"]
[White "Librelato, Kathie Goulart"]
[Black "Ondrejat, Miroslav"]
[Result "1-0"]
[ECO "B52"]
[WhiteElo "2255"]
[BlackElo "1903"]
[Annotator "TA"]
[PlyCount "59"]
[EventDate "2022.07.01"]
[EventType "swiss"]
[EventCountry "CZE"]
[SourceTitle "playchess.com"]
[Source "ChessBase"]
[SourceQuality "1"]
[TimeControl "40/5400+30:1800+30"]

{[%evp 11,59,18,22,-5,0,-10,0,6,18,8,12,12,6,3,3,-16,31,8,12,-14,48,15,155,10,25,0,122,134,129,137,135,129,152,151,150,143,140,38,34,0,0,0,139,121,428,447,437,432,1085,1034]} 1. e4 {[%emt 0:00:10]} c5 {[%emt 0:00:07]} 2. Nf3 {[%emt 0:00:35]} d6 {[%emt 0:00:04]} 3. Bb5+ {[%emt 0:02:35]} Bd7 {[%emt 0:02:51]} 4. Bxd7+ {[%emt 0:00:08]} Qxd7 {[%emt 0:00:14]} 5. O-O {[%emt 0:00:17]} Nc6 {[%emt 0:00:25]} 6. c3 {[%emt 0:00:17]} d5 {[%emt 0:06:37]} 7. e5 {[%emt 0:03:42] B52: Sicilian: Moscow Variation with 3...Bd7.} e6 {[%emt 0:04:15]} 8. d4 {[%emt 0:01:30]} Nge7 {[%emt 0:04:38]} 9. dxc5 {[%emt 0:34:35] The position is equal.} Ng6 {[%emt 0:00:28][%csl LRc5,LRe5]} 10. Be3 {[%emt 0:01:18]} Ngxe5 {[%emt 0:04:48]} 11. Nxe5 {[%emt 0:13:14]} Nxe5 {[%emt 0:01:36] [#]} 12. Nd2 $146 {[%emt 0:00:10]} ({Predecessor:} 12. Bd4 Qc7 13. Bxe5 Qxe5 14. Qa4+ Kd8 15. c4 Bxc5 16. cxd5 Qxb2 17. dxe6 b5 18. Qd1+ Bd4 19. Nc3 Qxc3 20. Rc1 {1-0 (20) Maguire,G (1974)-Eraclides,G (1975) ICCF email 2014}) 12... Nc6 {[%emt 0:21:41]} 13. Qg4 {[%emt 0:12:50]} f5 {[%emt 0:21:24]} (13... g6 $11 {is superior.}) 14. Qe2 {[%emt 0:01:27]} e5 {[%emt 0:07:31]} 15. Rad1 {[%emt 0:01:54]} Qf7 {[%emt 0:04:03]} (15... O-O-O $11 16. Nf3 f4) 16. b4 {[%emt 0:08:55]} a6 {[%emt 0:04:56]} (16... Be7 $1 $11) 17. Nf3 {[%emt 0:01:37]} ({Better is} 17. c4 $16) 17... Be7 $1 $11 {[%emt 0:03:08]} 18. Bc1 {[%emt 0:09:41]} (18. a4 $5 {[%cal Rb4b5]} O-O 19. b5 axb5 20. axb5 $11) 18... Bf6 {[%emt 0:02:15] [#]} (18... e4 $11 19. Ng5 Qg6) 19. Nxe5 $1 $16 {[%emt 0:01:16][%mdl 512] White is more active.} Bxe5 {[%emt 0:01:56]} (19... Nxe5 20. f4) 20. f4 {[%emt 0:00:08][%mdl 64] Pin} O-O {[%emt 0:00:44]} 21. fxe5 {[%emt 0:00:05]} Qe6 {[%emt 0:00:20]} 22. Bf4 {[%emt 0:00:24]} h6 {[%emt 0:00:45]} 23. h4 {[%emt 0:00:37]} Rad8 {[%emt 0:00:24]} 24. Rfe1 {[%emt 0:00:36]} ({White should try} 24. a4 $16) 24... d4 $14 {[%emt 0:00:49]} 25. Qc2 {[%emt 0:02:51]} dxc3 {[%emt 0:01:30]} 26. Qxc3 {[%emt 0:00:19] Black must now prevent Rd6.} Qxa2 {[%emt 0:00:36]} (26... Rxd1 $11 {remains equal.} 27. Rxd1 Qxa2) 27. Rd6 $36 {[%emt 0:00:23][%mdl 2048] Hoping for e6. White has strong initiative.} Qf7 {[%emt 0:02:51][%mdl 8192]} (27... Rf7 $16 {is more resistant.}) 28. e6 $18 {[%emt 0:00:26][%cal Be5e6,Be6e7][%mdl 32] White is clearly winning.} Qe7 {[%emt 0:00:23]} 29. Qg3 {[%emt 0:00:47] And now Bxh6 would win.} Qf6 {[%emt 0:00:59]} (29... Kh7 $142 30. Rxc6 bxc6) 30. e7 {[%emt 0:00:35] Weighted Error Value: White=0.26 (precise) /Black=0.53} 1-0

[Event "FIDE CB Open 2022"]
[Site "Ceske Budejovice"]
[Date "2022.07.01"]
[Round "1.14"]
[White "Zeleny, Tomas"]
[Black "Palchuk, Andrii"]
[Result "0-1"]
[ECO "B11"]
[WhiteElo "2136"]
[BlackElo "2248"]
[Annotator "TA"]
[PlyCount "46"]
[EventDate "2022.07.01"]
[EventType "swiss"]
[EventCountry "CZE"]
[SourceTitle "playchess.com"]
[Source "ChessBase"]
[SourceQuality "1"]
[TimeControl "40/5400+30:1800+30"]

{[%evp 12,46,28,11,32,36,36,35,56,55,50,-25,-27,-32,-35,-113,-118,-101,-114,-82,-81,-128,-97,-79,-45,-51,-41,-442,-450,-540,-570,-563,-566,-747,-748,-705,-690]} 1. e4 {[%emt 0:00:08]} c6 {[%emt 0:00:14]} 2. Nc3 {[%emt 0:00:32]} d5 {[%emt 0:00:04]} 3. Nf3 {[%emt 0:02:10]} Bg4 {[%emt 0:00:55]} 4. h3 {[%emt 0:00:07]} Bxf3 {[%emt 0:00:22]} 5. Qxf3 {[%emt 0:00:09]} e6 {[%emt 0:00:20]} 6. Qg3 {[%emt 0:01:12]} Nf6 {[%emt 0:10:14]} 7. d3 {[%emt 0:00:05]} Nbd7 {[%emt 0:03:16] B11: Caro-Kann: Two Knights Variation.} 8. Be2 {[%emt 0:00:28]} Bb4 {[%emt 0:06:04]} 9. O-O {[%emt 0:08:02] Hoping for e5.} ({Don't blunder} 9. Qxg7 $2 Rg8 10. Qh6 d4 $19) 9... Bxc3 {[%emt 0:03:52] White is slightly better.} 10. bxc3 {[%emt 0:00:09] [#] Strongly threatening e5.} dxe4 {[%emt 0:00:03]} 11. Ba3 {[%emt 0:11:49]} (11. dxe4 $14 Qa5 12. Bd3 (12. Qxg7 Rg8 $11)) 11... Qa5 $11 {[%emt 0:14:57][%csl LRa3,LRc3]} 12. Bb4 {[%emt 0:12:59]} ({Don't play} 12. Qxg7 Rg8 13. Bb4 Qa4 $17) 12... Qe5 {[%emt 0:11:46] [#]} 13. Qxg7 $146 {[%emt 0:08:29]} (13. f4 $15 exf3 14. Qxf3) ({Predecessor:} 13. Qxe5 Nxe5 14. dxe4 Nxe4 15. Rfe1 a5 16. Bf1 Nf6 17. Ba3 Ned7 18. c4 b6 19. g4 {½-½ (56) Czebe,A (2350)-Juhasz,L (2165) Balatonbereny 1993}) 13... Rg8 $17 {[%emt 0:00:32]} 14. Qh6 {[%emt 0:00:12]} exd3 {[%emt 0:17:08] Dancing on a razor blade.} 15. Bxd3 {[%emt 0:14:46]} c5 $40 {[%emt 0:00:37][%cal Bc6c5,Bc5c4,Bc4c3][%mdl 160] Black wants a kill.} 16. Ba3 {[%emt 0:01:17]} Qxc3 {[%emt 0:06:25]} 17. Qc1 {[%emt 0:06:09]} c4 {[%emt 0:01:27] Black is more active.} 18. Bb2 {[%emt 0:05:07]} Qb4 {[%emt 0:00:11]} 19. Be2 {[%emt 0:00:46][%mdl 8192] [#] This costs White the game.} ({White should play} 19. Ba3 $1 $15 Qb5 20. Be2) 19... c3 $1 $19 {[%emt 0:00:11] Black is clearly winning.} 20. Ba3 {[%emt 0:01:58]} Qe4 {[%emt 0:00:05][%csl Gg8,LRe2,LRg2][%cal Re4g2]} 21. Bg4 {[%emt 0:05:53]} h5 {[%emt 0:00:37][%cal Bh7h5,Bh5g4][%mdl 32]} 22. Qd1 {[%emt 0:00:05] Threatens to win with Bf3.} hxg4 {[%emt 0:04:36]} 23. Qd6 {[%emt 0:01:31]} O-O-O {[%emt 0:00:19] Weighted Error Value: White=0.83/Black=0.06 (flawless)} 0-1

[Event "FIDE CB Open 2022"]
[Site "Ceske Budejovice"]
[Date "2022.07.01"]
[Round "1.15"]
[White "Domalchuk-Jonasson, Aleksandr"]
[Black "Vaculik, Martin"]
[Result "1-0"]
[ECO "D22"]
[WhiteElo "2244"]
[BlackElo "2284"]
[Annotator "TA"]
[PlyCount "47"]
[EventDate "2022.07.01"]
[EventType "swiss"]
[EventCountry "CZE"]
[SourceTitle "playchess.com"]
[Source "ChessBase"]
[SourceQuality "1"]
[TimeControl "40/5400+30:1800+30"]

{[%evp 10,47,19,19,22,31,29,25,34,32,57,29,40,13,18,0,13,1,24,13,23,20,19,0,0,0,0,0,0,0,0,0,8,0,7,4,320,314,289,295]} 1. d4 {[%emt 0:00:06]} d5 {[%emt 0:00:13][%cal Bd7d5,Bd5c4][%mdl 32]} 2. c4 {[%emt 0:00:36]} dxc4 {[%emt 0:00:04]} 3. Nf3 {[%emt 0:00:24]} a6 {[%emt 0:01:42]} 4. e3 {[%emt 0:03:30]} b5 {[%emt 0:00:05]} 5. a4 {[%emt 0:02:19]} Bb7 {[%emt 0:01:05]} 6. b3 {[%emt 0:04:39]} e6 {[%emt 0:00:20] D22: Queen's Gambit Accepted: 3 Nf3 a6 4 e3.} 7. bxc4 $1 {[%emt 0:02:23] 7.bxc4 is better than 7.axb5.} bxc4 {[%emt 0:00:07]} 8. Bxc4 {[%emt 0:03:38]} c5 {[%emt 0:00:05] White has an edge.} 9. O-O {[%emt 0:08:41]} cxd4 {[%emt 0:03:56]} 10. Nxd4 {[%emt 0:06:10]} Nf6 {[%emt 0:03:13]} 11. Qe2 {[%emt 0:02:42]} Bd6 {[%emt 0:12:59] [#]} 12. Rd1 $146 {[%emt 0:05:47]} ({Predecessor:} 12. Nd2 O-O 13. Bb2 Nbd7 14. a5 Qe7 15. h3 Rfc8 16. Rfc1 Bb4 17. N4b3 e5 18. Bd3 {½-½ (52) Riazantsev,A (2634)-Christiansen,J (2582) Warsaw 2021}) 12... Qe7 {[%emt 0:00:46]} 13. Nd2 {[%emt 0:07:55]} Nbd7 {[%emt 0:06:07]} 14. N2b3 {[%emt 0:05:21] [#] Strongly threatening Na5.} Ne5 {[%emt 0:07:18]} 15. Na5 {[%emt 0:04:11][%cal Oc4b5] aiming for Bb5+!} Nxc4 {[%emt 0:01:27]} 16. Nxb7 {[%emt 0:02:57]} Qxb7 {[%emt 0:00:42]} 17. Qxc4 {[%emt 0:00:04][%cal Od4e6]} Rc8 {[%emt 0:03:47]} 18. Rb1 {[%emt 0:01:37][%cal Ba1b1,Bb1b7,Bb7b6,Bb6c6][%mdl 32]} Rxc4 {[%emt 0:43:41]} 19. Rxb7 {[%emt 0:02:52][%cal Oc1a3]} O-O {[%emt 0:05:14]} 20. Rb6 {[%emt 0:00:30]} Bc5 {[%emt 0:00:30]} 21. Rc6 {[%emt 0:18:18] Hoping for Nb3.} Ne4 {[%emt 0:00:17]} 22. Ba3 {[%emt 0:04:23][%cal Od4b3] Threatens to win with Nb3!} Nc3 $2 {[%emt 0:03:15][%mdl 8192]} (22... Rd8 $1 $11 {and Black stays safe.}) 23. Ra1 $18 {[%emt 0:03:10]} ({Not} 23. Bxc5 Nxd1 24. Bxf8 Rxc6 25. Nxc6 Kxf8 $11) ({And not} 23. Rxc5 Rxc5 24. Bxc5 Nxd1 25. Bxf8 Kxf8 $11) ({Weaker is} 23. Rc1 Bxa3 24. Rxc4 Bxc1 $14) 23... Nxa4 {[%emt 0:00:56] [#]} 24. Nb3 $1 {[%emt 0:01:59] Weighted Error Value: White=0.04 (flawless) /Black=0.41} 1-0

[Event "FIDE CB Open 2022"]
[Site "Ceske Budejovice"]
[Date "2022.07.01"]
[Round "1.16"]
[White "Hradek, Matyas"]
[Black "Walek, Petr"]
[Result "0-1"]
[ECO "B36"]
[WhiteElo "1888"]
[BlackElo "2237"]
[Annotator "TA"]
[PlyCount "54"]
[EventDate "2022.07.01"]
[EventType "swiss"]
[EventCountry "CZE"]
[SourceTitle "playchess.com"]
[Source "ChessBase"]
[SourceQuality "1"]
[TimeControl "40/5400+30:1800+30"]

{[%evp 15,54,38,44,44,34,13,41,-2,0,-9,-15,-34,37,33,25,32,27,32,67,0,55,0,0,-43,-37,-39,-40,-43,-35,-95,-54,-214,-178,-162,-171,-173,-166,-879,-873,-29997,-29998]} 1. e4 {[%emt 0:00:11]} c5 {[%emt 0:00:14]} 2. Nf3 {[%emt 0:00:12]} g6 {[%emt 0:00:05]} 3. c4 {[%emt 0:00:28]} Nc6 {[%emt 0:00:10]} 4. d4 {[%emt 0:00:24]} cxd4 {[%emt 0:00:04]} 5. Nxd4 {[%emt 0:00:09]} Nf6 {[%emt 0:00:05]} 6. Nc3 {[%emt 0:00:12]} d6 {[%emt 0:00:11]} 7. Be2 {[%emt 0:01:48]} Nxd4 {[%emt 0:00:11]} 8. Qxd4 {[%emt 0:00:41]} Bg7 {[%emt 0:00:06]} 9. Qd3 {[%emt 0:04:07] B36: Sicilian: Maroczy Bind: Gurgenidze System.} Be6 {[%emt 0:12:31] [#]} 10. O-O $146 {[%emt 0:05:37]} ({Predecessor:} 10. Rb1 O-O 11. O-O Nd7 12. Qc2 Ne5 13. Nd5 Rc8 14. Qa4 Nc6 15. Bg5 f5 16. Bd3 h6 {0-1 (28) Yildirim,K (1669)-Buke,F (2044) Antalya 2019}) 10... Nd7 {[%emt 0:04:57]} 11. f4 {[%emt 0:15:30][%cal Bf2f4,Bf4f5][%mdl 32] Against Ne5. White is slightly better.} Rc8 {[%emt 0:12:17]} 12. Nd5 {[%emt 0:06:48]} Nc5 {[%emt 0:08:07]} 13. Qf3 {[%emt 0:07:14]} a5 {[%emt 0:08:01]} ({Black should try} 13... f5 $15) 14. f5 $14 {[%emt 0:05:57]} Bxd5 {[%emt 0:00:54]} 15. exd5 {[%emt 0:07:53] [#] Threatens to win with fxg6.} O-O {[%emt 0:02:59]} 16. Rb1 {[%emt 0:02:14]} Nd7 {[%emt 0:10:19][%cal Oe7e6]} 17. b3 {[%emt 0:07:19]} (17. Be3 $14) 17... Ne5 {[%emt 0:11:51]} (17... e6 $1 $11) 18. Qh3 {[%emt 0:01:24]} (18. Qe4 $14) 18... b5 $11 {[%emt 0:01:47]} 19. Bg4 {[%emt 0:05:43]} Nxg4 {[%emt 0:10:38]} 20. Qxg4 {[%emt 0:00:16]} Qb6+ {[%emt 0:00:11]} 21. Kh1 {[%emt 0:00:37]} bxc4 {[%emt 0:00:17][%cal Bb5c4,Bc4c3,Bc3c2][%mdl 32] ...Qb4 is the strong threat.} 22. Bg5 {[%emt 0:00:56]} (22. fxg6 $15 fxg6 23. Qe6+ Kh8 24. Bg5) 22... c3 {[%emt 0:04:38]} 23. Bxe7 $2 {[%emt 0:01:35] This costs White the game.} (23. fxg6 $15 fxg6 24. Rxf8+ Rxf8 25. Qe6+ Kh8 26. Bxe7) 23... c2 {[%emt 0:00:57]} 24. Rbc1 {[%emt 0:01:34] [#]} Rfe8 $36 {[%emt 0:00:41][%mdl 2048] White must now prevent ...Qd4. Black is in control.} 25. fxg6 {[%emt 0:01:45]} hxg6 {[%emt 0:02:10] aiming for ...Rc7.} 26. Rxf7 $2 {[%emt 0:00:52]} (26. Bf6) 26... Qe3 $19 {[%emt 0:00:34]} 27. Bg5 {[%emt 0:01:57]} Qxc1+ $1 {[%emt 0:00:11][%mdl 64] Remove Defender, Decoy.  Weighted Error Value: White=1.04/Black=0.20 (precise)} 0-1